fUSD/lending_fUSD_20240403
["ID","MTS","AMOUNT","RATE_DAILY","PERIOD"]
[321432680,1712184673128,-500.0,0.00055068,120]
[321432681,1712184673138,-525.4561617,0.00055068,120]
[321432682,1712184673147,-500.0,0.00055068,120]
[321432683,1712184673156,-2861.7,0.00055068,120]
[321432684,1712184673166,-500.0,0.00055068,120]
[321432685,1712184673175,-500.0,0.00055068,120]
[321432686,1712184673184,-988.36,0.00055068,120]
[321432687,1712184673193,-500.0,0.00055068,120]
[321432688,1712184673203,-500.0,0.00055068,120]
[321432689,1712184673212,-15447.35,0.00055068,120]
[321432690,1712184673223,-504.9582754,0.00055068,120]
[321432691,1712184673233,-1479.72,0.00055068,120]
[321432692,1712184673243,-1853.14,0.00055068,120]
[321432693,1712184673253,-3614.27,0.00055068,120]
[321432694,1712184673262,-50175.87,0.00055068,120]
[321432695,1712184673272,-500.0,0.00055068,120]
[321432696,1712184673283,-593.44,0.00055068,120]
[321432697,1712184673294,-8272.45,0.00055068,120]
[321432698,1712184673303,-517.35786485,0.00055068,120]
[321432699,1712184673313,-500.0,0.00055068,120]
[321432700,1712184673322,-1273.38,0.00055068,120]
[321432701,1712184673334,-500.0,0.00055068,120]
[321432702,1712184673343,-500.0,0.00055068,120]
[321432703,1712184673352,-500.0,0.00055068,120]
[321432704,1712184673362,-500.0,0.00055068,120]
[321432705,1712184673373,-500.0,0.00055068,120]
[321432706,1712184673383,-2542.55,0.00055068,120]
[321432707,1712184673392,-500.0,0.00055068,120]
[321432708,1712184673402,-500.0,0.00055068,120]
[321432709,1712184673411,-507.17787153,0.00055068,120]
[321432710,1712184673421,-2232.8,0.00055068,120]
[321432711,1712184673430,-1094.92,0.00055068,120]
[321432712,1712184673440,-2830.73,0.00055068,120]
[321432713,1712184673449,-2387.44,0.00055068,120]
[321432714,1712184673459,-500.0,0.00055068,120]
[321432715,1712184673468,-531.05227138,0.00055068,120]
[321432716,1712184673477,-500.0,0.00055068,120]
[321432717,1712184673487,-833.32,0.00055068,120]
[321432718,1712184673496,-564.29,0.00055068,120]
[321432719,1712184673506,-407.46717886,0.00055068,120]
[321432720,1712184673515,-500.0,0.00055068,120]
[321432721,1712184673524,-500.0,0.00055068,120]
[321432722,1712184673534,-500.0,0.00055068,120]
[321432723,1712184673543,-500.0,0.00055068,120]
[321432724,1712184673553,-509.42136009,0.00055068,120]
[321432725,1712184673562,-500.0,0.00055068,120]
[321432726,1712184673571,-571.59,0.00055068,120]
[321432727,1712184673581,-1166.59,0.00055068,120]
[321432728,1712184673590,-573.98,0.00055068,120]
[321432729,1712184673599,-2171.67,0.00055068,120]
[321432730,1712184673609,-500.0,0.00055068,120]
[321432731,1712184673618,-500.0,0.00055068,120]
[321432732,1712184673627,-653.27,0.00055068,120]
[321432733,1712184673637,-1571.1,0.00055068,120]
[321432734,1712184673646,-500.0,0.00055068,120]
[321432735,1712184673655,-500.0,0.00055068,120]
[321432736,1712184673665,-3113.62,0.00055068,120]
[321432737,1712184673674,-500.0,0.00055068,120]
[321432738,1712184673683,-901.12,0.00055068,120]
[321432739,1712184673693,-4823.72,0.00055068,120]
[321432740,1712184673704,-831.31,0.00055068,120]
[321432741,1712184673713,-2281.29,0.00055068,120]
[321432742,1712184673722,-571.26,0.00055068,120]
[321432743,1712184673732,-500.0,0.00055068,120]
[321432744,1712184673742,-500.0,0.00055068,120]
[321432745,1712184673752,-2341.82,0.00055068,120]
[321432746,1712184673761,-500.0,0.00055068,120]
[321432747,1712184673771,-616.93,0.00055068,120]
[321432748,1712184673780,-500.0,0.00055068,120]
[321432749,1712184673789,-499.87416436,0.00055068,120]
[321432750,1712184673798,-500.0,0.00055068,120]
[321432751,1712184673986,-2671.64,0.00055068,120]
[321432752,1712184673996,-615.89808607,0.00055068,120]
[321432753,1712184674006,-1007.19781613,0.00055068,14]
[321432754,1712184674018,-635.83,0.00055068,120]
[321432755,1712184674027,-13561.16,0.00055068,120]
[321432756,1712184674036,-530.63469452,0.00055068,120]
[321432757,1712184674054,-2693.45,0.00055068,120]
[321432758,1712184674066,-500.0,0.00055068,120]
[321432759,1712184674080,-500.0,0.00055068,120]
[321432760,1712184674090,-990.77,0.00055068,120]
[321432761,1712184674100,-1166.4,0.00055068,120]
[321432762,1712184674110,-531.01,0.00055068,120]
[321432763,1712184674119,-6476.21,0.00055068,120]
[321432764,1712184674129,-500.0,0.00055068,120]
[321432765,1712184674138,-500.0,0.00055068,120]
[321432766,1712184674148,-500.0,0.00055068,120]
[321432767,1712184674158,-1322.23,0.00055068,120]
[321432768,1712184674172,-342.89425155,0.00055068,120]
[321432769,1712184674599,-1281.69574845,0.00055068,120]
[321432770,1712184674608,-500.0,0.00055068,120]
[321432771,1712184674618,-3687.58,0.00055068,120]
[321432772,1712184674628,-500.0,0.00055068,120]
[321432773,1712184674637,-2307.59,0.00055068,120]
[321432774,1712184674646,-500.0,0.00055068,120]
[321432775,1712184674656,-500.0,0.00055068,120]
[321432776,1712184674667,-500.0,0.00055068,120]
[321432777,1712184674676,-1218.61,0.00055068,120]
[321432778,1712184674686,-18725.44,0.00055068,120]
[321432779,1712184674695,-545.2194693,0.00055068,120]
[321432780,1712184674705,-844.09,0.00055068,120]
[321432781,1712184674717,-2888.83,0.00055068,120]
[321432782,1712184674727,-514.90863681,0.00055068,120]
[321432783,1712184674741,-508.37727523,0.00055068,120]
[321432784,1712184674751,-531.23,0.00055068,120]
[321432785,1712184674771,-500.0,0.00055068,120]
[321432786,1712184674781,-1000.0,0.00055068,120]
[321432787,1712184674805,-677.74,0.00055068,120]
[321432788,1712184674821,-500.0,0.00055068,120]
[321432789,1712184674831,-2618.75,0.00055068,120]
[321432790,1712184674860,-2726.28,0.00055068,120]
[321432791,1712184674870,-1035.92,0.00055068,120]
[321432792,1712184674880,-585.83,0.00055068,120]
[321432793,1712184674889,-500.0,0.00055068,120]
[321432794,1712184674899,-1839.73,0.00055068,120]
[321432795,1712184674918,-1519.81,0.00055068,120]
[321432796,1712184674927,-516.59275974,0.00055068,120]
[321432797,1712184674937,-500.0,0.00055068,120]
[321432798,1712184674946,-500.0,0.00055068,120]
[321432799,1712184674956,-40194.92,0.00055068,120]
[321432800,1712184674966,-514.3885178,0.00055068,120]
[321432801,1712184674978,-5781.72,0.00055068,120]
[321432802,1712184674987,-4806.56,0.00055068,120]
[321432803,1712184674997,-500.0,0.00055068,120]
[321432804,1712184675006,-888.0,0.00055068,120]
[321432805,1712184675015,-509.09584543,0.00055068,120]
[321432806,1712184675025,-500.0,0.00055068,120]
[321432807,1712184675034,-963.82,0.00055068,120]
[321432808,1712184675044,-730.5,0.00055068,120]
[321432809,1712184675053,-512.20716078,0.00055068,120]
[321432810,1712184675062,-872.43,0.00055068,120]
[321432811,1712184675071,-500.0,0.00055068,120]
[321432812,1712184675081,-2401.85,0.00055068,120]
[321432813,1712184675091,-500.0,0.00055068,120]
[321432814,1712184675100,-532.18,0.00055068,120]
[321432815,1712184675110,-500.0,0.00055068,120]
[321432816,1712184675120,-4374.57,0.00055068,120]
[321432817,1712184675130,-7192.17,0.00055068,120]
[321432818,1712184675139,-7428.5,0.00055068,120]
[321432819,1712184675149,-500.0,0.00055068,120]
[321432820,1712184675159,-2073.31,0.00055068,120]
[321432821,1712184675170,-559.19,0.00055068,120]
[321432822,1712184675180,-23235.85,0.00055068,120]
[321432823,1712184675190,-500.0,0.00055068,120]
[321432824,1712184675200,-500.0,0.00055068,120]
[321432825,1712184675210,-743.85,0.00055068,120]
[321432826,1712184675218,-865.07,0.00055068,120]
[321432827,1712184675229,-1703.32,0.00055068,120]
[321432828,1712184675238,-1614.74,0.00055068,120]
[321432829,1712184675248,-4317.35,0.00055068,120]
[321432830,1712184675258,-3041.57,0.00055068,120]
[321432831,1712184675267,-1938.19,0.00055068,120]
[321432832,1712184675276,-500.0,0.00055068,120]
[321432833,1712184675298,-500.0,0.00055068,120]
[321432834,1712184675322,-500.0,0.00055068,120]
[321432835,1712184675333,-1225.81,0.00055068,120]
[321432836,1712184675353,-500.0,0.00055068,120]
[321432837,1712184675370,-718.8,0.00055068,120]
[321432838,1712184675382,-500.0,0.00055068,120]
[321432839,1712184675391,-501.02519203,0.00055068,120]
[321432840,1712184675401,-500.0,0.00055068,120]
[321432841,1712184675411,-526.78240769,0.00055068,120]
[321432842,1712184675423,-690.37,0.00055068,120]
[321432843,1712184675445,-500.0,0.00055068,120]
[321432844,1712184675454,-500.0,0.00055068,120]
[321432845,1712184675463,-1048.4,0.00055068,120]
[321432846,1712184675472,-573.7917757,0.00055068,120]
[321432847,1712184675481,-654.19,0.00055068,120]
[321432848,1712184675491,-500.0,0.00055068,120]
[321432849,1712184675503,-500.0,0.00055068,120]
[321432850,1712184675512,-2690.54,0.00055068,120]
[321432851,1712184675520,-529.4324248,0.00055068,120]
[321432852,1712184675529,-4397.95,0.00055068,120]
[321432853,1712184675539,-2998.67,0.00055068,120]
[321432854,1712184675548,-500.0,0.00055068,120]
[321432855,1712184675557,-518.68860114,0.00055068,120]
[321432856,1712184675566,-528.01927356,0.00055068,120]
[321432857,1712184675575,-2768.66,0.00055068,120]
[321432858,1712184675585,-8698.46,0.00055068,120]
[321432859,1712184675594,-1385.21,0.00055068,120]
[321432860,1712184675603,-510.50689306,0.00055068,120]
[321432861,1712184675613,-1332.76,0.00055068,120]
[321432862,1712184675623,-500.0,0.00055068,120]
[321432863,1712184675632,-1960.36,0.00055068,120]
[321432864,1712184675642,-507.77445465,0.00055068,120]
[321432865,1712184675651,-757.35,0.00055068,120]
[321432866,1712184675661,-500.0,0.00055068,120]
[321432867,1712184675672,-906.33,0.00055068,120]
[321432868,1712184675682,-500.0,0.00055068,120]
[321432869,1712184675691,-1634.63,0.00055068,120]
[321432870,1712184675700,-500.0,0.00055068,120]
[321432871,1712184675710,-3600.93,0.00055068,120]
[321432872,1712184675720,-731.15,0.00055068,120]
[321432873,1712184675729,-5728.88,0.00055068,120]
[321432874,1712184675739,-150.0,0.00055068,120]
[321432875,1712184675748,-1102.91,0.00055068,120]
[321432876,1712184675758,-1828.14,0.00055068,21]
[321432877,1712184675768,-500.0,0.00055068,120]
[321432878,1712184675778,-2718.48,0.00055068,120]
[321432879,1712184675787,-500.0,0.00055068,120]
[321432880,1712184675796,-1816.51,0.00055068,120]
[321432881,1712184675811,-1719.33,0.00055068,7]
[321432882,1712184675827,-585.62240459,0.00055068,120]
[321432883,1712184675858,-567.45,0.00055068,120]
[321432884,1712184675872,-506.53965657,0.00055068,120]
[321432885,1712184675883,-5651.64,0.00055068,120]
[321432886,1712184675893,-500.0,0.00055068,120]
[321432887,1712184675903,-500.0,0.00055068,120]
[321432888,1712184675912,-500.0,0.00055068,120]
[321432889,1712184675921,-5000.0,0.00055068,120]
[321432890,1712184675931,-510.98471188,0.00055068,120]
[321432891,1712184675940,-1653.19,0.00055068,120]
[321432892,1712184675949,-322.29491923,0.00055068,120]
[321432893,1712184675958,-1000.0,0.00055068,120]
[321432894,1712184675967,-500.0,0.00055068,120]
[321432895,1712184675977,-1269.01,0.00055068,120]
[321432896,1712184675986,-10104.07685015,0.00055068,120]
[321432897,1712184676722,-323.20929984,0.00053605,120]
[321432898,1712184676734,-731.80295,0.00053605,120]
[321432899,1712184676779,-1608.91586877,0.00053605,120]
[321432900,1712184677416,-982.31000015,0.0004801,2]
[321432901,1712184677450,-110.57978305,0.0004801,2]
[321432902,1712184677460,-192.16021695,0.000507,30]
[321432903,1712184686442,150.0,0.000154,2]
[321432904,1712184686462,150.0,0.000154,2]
[321432905,1712184686482,150.0,0.000154,2]
[321432906,1712184686501,150.0,0.000154,2]
[321432907,1712184686522,150.0,0.000154,2]
[321432908,1712184686542,150.0,0.000154,2]
[321432909,1712184686561,150.0,0.000154,2]
[321432910,1712184686582,150.0,0.000154,2]
[321432911,1712184686601,150.0,0.000154,2]
[321432912,1712184686621,150.0,0.000154,2]
[321432913,1712184686641,150.0,0.000154,2]
[321432914,1712184686662,150.0,0.000154,2]
[321432915,1712184686683,150.0,0.000154,2]
[321432916,1712184686704,150.0,0.000154,2]
[321432917,1712184686724,150.0,0.000154,2]
[321432918,1712184686744,150.0,0.000154,2]
[321432919,1712184686764,150.0,0.000154,2]
[321432920,1712184686784,150.0,0.000154,2]
[321432921,1712184686803,150.0,0.000154,2]
[321432922,1712184686825,150.0,0.000154,2]
[321432923,1712184686847,150.0,0.000154,2]
[321432924,1712184686866,150.0,0.000154,2]
[321432925,1712184686887,150.0,0.000154,2]
[321432926,1712184686906,203.78274107,0.000154,2]
[321432927,1712184686933,5712.8899714,0.000154,2]
[321432928,1712184688563,9298.08311169,9e-05,2]
[321432929,1712184689702,508.50974852,0.00018,2]
[321432930,1712184718497,150.0,6.94e-05,2]
[321432931,1712184718518,150.0,6.94e-05,2]
[321432932,1712184718537,150.0,6.94e-05,2]
[321432933,1712184718557,150.0,6.94e-05,2]
[321432934,1712184718577,150.0,6.94e-05,2]
[321432935,1712184718596,150.0,6.94e-05,2]
[321432936,1712184718615,150.0,6.94e-05,2]
[321432937,1712184718635,150.0,6.94e-05,2]
[321432938,1712184718654,150.0,6.94e-05,2]
[321432939,1712184718674,150.0,6.94e-05,2]
[321432940,1712184718694,150.0,6.94e-05,2]
[321432941,1712184718715,150.0,6.94e-05,2]
[321432942,1712184718736,150.0,6.94e-05,2]
[321432943,1712184718756,150.0,6.94e-05,2]
[321432944,1712184718776,150.0,6.94e-05,2]
[321432945,1712184718795,150.0,6.94e-05,2]
[321432946,1712184718815,150.0,6.94e-05,2]
[321432947,1712184718835,150.0,6.94e-05,2]
[321432948,1712184718858,150.0,6.94e-05,2]
[321432949,1712184718882,20847.18393645,6.94e-05,2]
[321432950,1712184731824,4539.01770042,0.000199,3]
[321432951,1712184751565,1314.61093882,0.00015,2]
[321432952,1712184797686,205.0,9.8e-05,2]
[321432953,1712184801364,4977.62288712,0.0001305,2]
[321432954,1712184801805,241.7117613,0.000101,2]
[321432958,1712184839985,15253.6233745,0.00012,2]
[321432959,1712184872475,150.0,0.00015,2]
[321432960,1712184872500,19758.0942702,0.00015,2]
[321432961,1712184872522,14164.45865957,0.00015,2]
[321432962,1712184874371,162.41652671,0.00040513,30]
[321432963,1712184876751,322.09926757,0.00040513,120]
[321432964,1712184879504,11119.11039087,0.00040513,30]
[321432965,1712185742446,3550.0,0.00040688,30]
[321433013,1712185831681,-150.0,0.00018645,2]
[321433015,1712185831691,-620.47256863,0.00021598,2]
[321433017,1712185831790,-379.52743137,0.00021598,2]
[321433018,1712185831800,-165.11,0.00021599,2]
[321433019,1712185831809,-782.49966246,0.00023009,2]
[321433020,1712185831819,-1204.97920617,0.0002301,2]
[321433024,1712185837775,-1681.43446647,0.0002301,2]
[321433025,1712185837784,-250.0,0.00023084,2]
[321433026,1712185837793,-23900.0,0.00023135,2]
[321433027,1712185837801,-500.0,0.00023161,2]
[321433028,1712185837810,-284.38,0.00023164,2]
[321433029,1712185837819,-250.0,0.00023175,2]
[321433030,1712185837828,-150.99,0.00023175,2]
[321433031,1712185837837,-925.3,0.00023196,2]
[321433032,1712185837847,-500.0,0.00023202,2]
[321433033,1712185837857,-151.37,0.00023264,2]
[321433034,1712185837870,-500.0,0.00023492,2]
[321433035,1712185837879,-191.17,0.00023517,2]
[321433036,1712185837888,-168.59,0.00023545,10]
[321433037,1712185837898,-8239.5361,0.00023578,2]
[321433038,1712185837907,-7106.2948,0.00023578,2]
[321433039,1712185837916,-433.2096,0.00023578,2]
[321433040,1712185837926,-209.2402,0.00023578,2]
[321433041,1712185837935,-255.1913,0.00023578,2]
[321433042,1712185837944,-3714.1249,0.00023578,2]
[321433043,1712185837954,-788.98,0.00023667,2]
[321433044,1712185837962,-151.37,0.00023668,2]
[321433045,1712185837972,-72164.21103817,0.00023678,2]
[321433046,1712185837981,-9999.99,0.00023678,2]
[321433047,1712185837991,-1000.0,0.00023805,2]
[321433048,1712185838002,-165.11,0.00023863,2]
[321433049,1712185838012,-224.37030284,0.00024,2]
[321433050,1712185838023,-941.51448257,0.00024,2]
[321433051,1712185838033,-499.99,0.00024,2]
[321433052,1712185838044,-151.37,0.00024072,2]
[321433053,1712185838054,-1029.78349004,0.000241,2]
[321433054,1712185838064,-1202.2616625,0.0002425,2]
[321433055,1712185838074,-151.37,0.00024476,2]
[321433056,1712185838084,-181.47,0.0002453,2]
[321433057,1712185838093,-1801.33086406,0.00024698,2]
[321433058,1712185838104,-2205.54996589,0.00024698,2]
[321433059,1712185838115,-1754.7191,0.00024698,2]
[321433060,1712185838127,-1000.0,0.00024698,2]
[321433061,1712185838136,-2500.0,0.00024698,2]
[321433062,1712185838146,-1801.330864,0.0002472,2]
[321433063,1712185838155,-2205.54996583,0.0002472,2]
[321433064,1712185838165,-1801.330864,0.00024743,2]
[321433065,1712185838175,-2205.54996583,0.00024743,2]
[321433066,1712185838184,-1801.330864,0.00024765,2]
[321433067,1712185838195,-2205.54996583,0.00024765,2]
[321433068,1712185838205,-1801.330864,0.00024788,2]
[321433069,1712185838216,-2205.54996583,0.00024788,2]
[321433070,1712185838225,-317.05508642,0.00024798,2]
[321433071,1712185838234,-4776.6577,0.00024798,2]
[321433072,1712185838244,-19673.0568,0.00024798,2]
[321433073,1712185838254,-11448.992,0.00024798,2]
[321433074,1712185838264,-172.999,0.00024798,2]
[321433075,1712185838276,-1801.330864,0.0002481,2]
[321433076,1712185838285,-2205.54996583,0.0002481,2]
[321433077,1712185838295,-1801.330864,0.00024833,2]
[321433078,1712185838305,-2205.54996583,0.00024833,2]
[321433079,1712185838314,-317.05508642,0.00024849,2]
[321433080,1712185838324,-1801.330864,0.00024855,2]
[321433081,1712185838333,-2205.54996583,0.00024855,2]
[321433082,1712185838342,-1801.330864,0.00024878,2]
[321433083,1712185838353,-2205.54996583,0.00024878,2]
[321433084,1712185838362,-163.91789015,0.00024888,2]
[321433085,1712185838373,-239.41044962,0.00024897,2]
[321433086,1712185838382,-1000.0,0.00024898,2]
[321433087,1712185838391,-221322.86688545,0.00024898,2]
[321433088,1712185838422,-661.8,0.00024898,2]
[321433118,1712185839931,-615.4282404,0.00024898,2]
[321433119,1712185839944,-265.76999999,0.00024898,2]
[321433120,1712185839957,-1654.35,0.00024898,2]
[321433126,1712185842709,-3428.93,0.00024898,2]
[321433127,1712185842824,-18430.80217416,0.00024898,2]
[321433128,1712185842835,-245000.0,0.00024898,2]
[321433129,1712185842845,-500.0,0.00024898,2]
[321433130,1712185842853,-7500.0,0.00024898,2]
[321433131,1712185842862,-169.59288491,0.00024899,2]
[321433132,1712185842873,-164.5877838,0.00024899,2]
[321433133,1712185842883,-167.06213893,0.00024899,2]
[321433134,1712185842892,-152.91375919,0.00024899,2]
[321433135,1712185842902,-164.58778379,0.00024899,2]
[321433136,1712185842911,-164.58778379,0.000249,2]
[321433137,1712185842921,-164.58778379,0.000249,2]
[321433138,1712185842931,-1801.330864,0.000249,2]
[321433139,1712185842940,-2205.54996583,0.000249,2]
[321433140,1712185842949,-317.05508642,0.000249,2]
[321433141,1712185842959,-1838.76857961,0.000249,2]
[321433142,1712185842968,-322.18007011,0.000249,2]
[321433143,1712185842977,-281.74662867,0.00024998,2]
[321433144,1712185842987,-316173.31998981,0.00024998,2]
[321433145,1712185843020,-493.76992715,0.00024998,2]
[321433152,1712185843559,-1.71396649,0.00024998,2]
[321433155,1712185845711,-0.15228104,0.00024897,2]
[321433163,1712185957947,644.0,0.00040688,30]
[321433178,1712186071180,250.0,0.00023,3]
[321433181,1712186102419,1000.0,0.00040688,30]
[321433182,1712186103597,1000.0,0.00040688,30]
[321433185,1712186104757,1000.0,0.00040688,30]
[321433186,1712186105934,303.54287196,0.00040688,30]
[321433193,1712186263459,187.0,0.00040659,30]
[321433205,1712186863033,335.0,0.00040656,30]
[321433206,1712186952165,-1000.0,0.00018567,2]
[321433207,1712186952186,-43.53324287,0.00018568,2]
[321433218,1712187031806,-235.43,0.00021069,2]
[321433219,1712187031816,-650.6319,0.000219,2]
[321433220,1712187031825,-782.49966246,0.00022,2]
[321433221,1712187031834,-168.96,0.00022995,2]
[321433222,1712187031844,-236.98,0.00022995,2]
[321433223,1712187031854,-191.19,0.00023001,2]
[321433224,1712187031863,-500.0,0.00023024,2]
[321433225,1712187031873,-250.0,0.00023034,2]
[321433226,1712187031883,-616.19,0.00023166,2]
[321433227,1712187031895,-23900.0,0.00023166,2]
[321433228,1712187031904,-499.99,0.00023166,2]
[321433229,1712187031913,-202.68,0.00023182,2]
[321433230,1712187031922,-150.99,0.00023182,2]
[321433231,1712187031932,-202.68,0.00023245,2]
[321433232,1712187031941,-202.68,0.00023309,2]
[321433233,1712187031950,-235.43,0.00023332,2]
[321433234,1712187031960,-3202.48,0.00023366,2]
[321433235,1712187031969,-1800.65706621,0.00023366,2]
[321433236,1712187032008,-947.14190502,0.00023366,2]
[321433237,1712187032019,-404.69128552,0.00023366,2]
[321433238,1712187032034,-5495.61974325,0.00023366,2]
[321433239,1712187032043,-202.68,0.00023373,2]
[321433240,1712187032053,-202.68,0.00023436,2]
[321433241,1712187032064,-202.68,0.000235,2]
[321433242,1712187032073,-202.68,0.00023563,2]
[321433243,1712187032082,-202.68,0.00023627,2]
[321433244,1712187032093,-202.68,0.0002369,2]
[321433245,1712187032103,-154.89,0.00023744,2]
[321433246,1712187032112,-154.89,0.00023752,2]
[321433247,1712187032121,-2157.02,0.00023752,2]
[321433248,1712187032130,-202.68,0.00023754,2]
[321433249,1712187032144,-154.89,0.00023759,2]
[321433250,1712187032153,-154.89,0.00023766,2]
[321433251,1712187032162,-154.89,0.00023774,2]
[321433252,1712187032171,-154.89,0.00023781,2]
[321433253,1712187032180,-154.89,0.00023789,2]
[321433254,1712187032189,-154.89,0.00023796,2]
[321433255,1712187032198,-154.89,0.00023804,2]
[321433256,1712187032207,-154.89,0.00023811,2]
[321433257,1712187032216,-202.68,0.00023818,2]
[321433258,1712187032225,-154.89,0.00023818,2]
[321433259,1712187032234,-657.48,0.00023823,2]
[321433260,1712187032244,-154.89,0.00023826,2]
[321433261,1712187032253,-117.15747896,0.00023833,2]
[321433264,1712187032398,-37.73252104,0.00023833,2]
[321433266,1712187032406,-154.89,0.00023841,2]
[321433267,1712187032415,-154.89,0.00023848,2]
[321433269,1712187032425,-154.89,0.00023855,2]
[321433271,1712187032434,-1000.0,0.00023857,2]
[321433272,1712187032443,-154.89,0.00023863,2]
[321433273,1712187032452,-202.68,0.00023881,2]
[321433274,1712187032461,-202.68,0.00023945,2]
[321433275,1712187032471,-224.37030284,0.00024,2]
[321433276,1712187032480,-202.68,0.00024008,2]
[321433277,1712187032489,-202.68,0.00024072,2]
[321433278,1712187032498,-202.68,0.00024136,2]
[321433279,1712187032508,-202.68,0.00024199,2]
[321433280,1712187032517,-202.68,0.00024263,2]
[321433281,1712187032526,-202.68,0.00024326,2]
[321433282,1712187032535,-202.68,0.0002439,2]
[321433283,1712187032544,-181.47,0.00024493,2]
[321433284,1712187032554,-4716.9153,0.00024598,2]
[321433285,1712187032564,-1000.0,0.00024698,2]
[321433286,1712187032573,-209.2402,0.00024698,2]
[321433287,1712187032582,-433.2096,0.00024698,2]
[321433288,1712187032591,-2500.0,0.00024698,2]
[321433289,1712187032601,-1172.153,0.00024698,2]
[321433290,1712187032610,-7106.2948,0.00024698,2]
[321433291,1712187032619,-1000.0,0.00024698,2]
[321433292,1712187032628,-920.0771642,0.0002471,2]
[321433293,1712187032638,-628.9860442,0.00024716,2]
[321433294,1712187032648,-920.07716419,0.00024731,2]
[321433295,1712187032657,-628.98604418,0.00024736,2]
[321433296,1712187032666,-920.07716419,0.00024752,2]
[321433297,1712187032675,-628.98604418,0.00024757,2]
[321433298,1712187032685,-920.07716419,0.00024773,2]
[321433299,1712187032694,-628.98604418,0.00024777,2]
[321433300,1712187032703,-920.07716419,0.00024794,2]
[321433301,1712187032713,-628.98604418,0.00024798,2]
[321433302,1712187032722,-39899.8447,0.00024798,2]
[321433303,1712187032732,-100000.0,0.00024798,2]
[321433304,1712187032741,-920.07716419,0.00024816,2]
[321433305,1712187032751,-628.98604418,0.00024818,2]
[321433306,1712187032759,-920.07716419,0.00024837,2]
[321433307,1712187032770,-628.98604418,0.00024839,2]
[321433308,1712187032779,-920.07716419,0.00024858,2]
[321433309,1712187032789,-628.98604418,0.00024859,2]
[321433310,1712187032798,-920.07716419,0.00024879,2]
[321433311,1712187032807,-17526.916392,0.00024896,2]
[321433312,1712187032817,-1000.0,0.00024896,2]
[321433313,1712187032827,-49315.85659236,0.00024897,2]
[321433425,1712187038212,-628.98604418,0.0002488,2]
[321433426,1712187038222,-16728.61414884,0.00024897,2]
[321433427,1712187038231,-173775.67542375,0.00024898,2]
[321433428,1712187038321,-2511.55591866,0.00024898,2]
[321433542,1712187040551,-1329.20722544,0.00024898,2]
[321433543,1712187040562,-2298.34899009,0.00024898,2]
[321433544,1712187040573,-1053.92439417,0.00024898,2]
[321433546,1712187042906,-1846.51500056,0.00024898,2]
[321433552,1712187056659,417.075,0.00013926,2]
[321433553,1712187205030,23754.66821146,0.00013926,2]
[321433554,1712187413087,1327.93285369,0.00013926,2]
[321433555,1712187460282,-155.0,0.00018463,2]
[321433556,1712187465501,-261.0881052,0.00018464,2]
[321433557,1712187465792,-261.0881052,0.00018464,2]
[321433558,1712187466148,-261.0881052,0.00018464,2]
[321433559,1712187466410,-216.7356844,0.00018464,2]
[321433560,1712187466429,-44.3524208,0.00018467,2]
[321433561,1712187466958,-255.6475792,0.00018467,2]
[321433562,1712187475348,-150.0,0.00018468,2]
[321433563,1712187475520,-150.0,0.00018468,2]